bitfinex/quotes_ETHUSD_20250114
["timestamp","ask_amount","ask_price","bid_price","bid_amount"]
[1736888923607,0.37952,3236.6,3236.0,3.09023]
[1736888923764,0.40791712,3236.6,3236.0,3.09023]
[1736888924378,0.40791712,3236.6,3236.1,3.0901]
[1736888924575,0.02839712,3236.6,3236.1,3.0901]
[1736888929279,0.02839712,3236.6,3235.7,1.43263549]
[1736888929482,0.7952,3236.7,3236.2,3.09003]
[1736888929680,0.0284893,3236.5,3236.2,3.09003]
[1736888930007,0.7952,3236.7,3236.2,3.09003]
[1736888930185,0.02847389,3236.4,3235.8,3.09039]
[1736888930508,0.02758885,3236.3,3236.0,3.09019]
[1736888930708,0.7952,3236.7,3236.0,3.09019]
[1736888931008,0.80747344,3236.2,3236.0,3.09019]
[1736888931219,0.7799,3236.2,3236.0,3.09019]
[1736888933410,0.7508,3236.8,3236.0,3.09019]
[1736888936222,3.2538135,3237.3,3235.3,0.8261]
[1736888936223,0.03862305,3236.7,3235.3,0.8261]
[1736888936522,0.7508,3236.2,3235.3,0.8261]
[1736888936691,0.7508,3236.2,3235.5,3.09068]
[1736888937782,1.134867,3236.2,3235.3,0.8261]
[1736888937986,0.7508,3235.8,3234.9,3.09121]
[1736888938512,0.7508,3235.8,3234.7,5.750943]
[1736888938718,0.7508,3235.8,3235.0,3.09116]
[1736888939315,0.7508,3235.8,3234.7,5.750943]
[1736888939316,3.84124,3235.8,3234.8,3.70658745]
[1736888939722,0.7508,3235.7,3234.9,3.09128]
[1736888939881,1.134924,3235.7,3234.9,3.09128]
[1736888940550,4.225494,3235.7,3234.7,3.9175]
[1736888940691,0.7508,3235.6,3234.8,3.09134]
[1736888941895,0.7508,3235.6,3234.6,0.62434801]
[1736888942088,3.91405,3235.5,3234.6,3.09152]
[1736888942292,4.305455,3235.5,3234.6,3.09152]
[1736888942836,3.091,3235.2,3234.4,1.924843]
[1736888942995,0.8233,3235.0,3234.4,1.924843]
[1736888943191,0.8233,3234.8,3234.4,1.924843]
[1736888943527,0.8233,3234.5,3234.4,1.924843]
[1736888943905,0.8233,3234.5,3233.8,1.924843]
[1736888944142,3.91532,3234.2,3233.8,1.924843]
[1736888944348,3.483582,3234.1,3233.8,1.924843]
[1736888944571,3.483582,3234.1,3233.7,2.56645733]
[1736888944840,3.483582,3234.1,3233.3,1.924843]
[1736888945152,0.391532,3234.1,3233.3,1.924843]
[1736888945443,0.391532,3234.1,3233.2,3.0929]
[1736888945646,0.8233,3234.2,3233.2,3.0929]
[1736888946111,0.8233,3234.2,3233.0,3.37599551]
[1736888946298,0.8233,3235.1,3233.1,0.8312]
[1736888946493,0.8233,3234.9,3233.9,3.09222]
[1736888946699,0.391451,3234.8,3233.7,0.8312]
[1736888947046,0.8233,3234.9,3233.7,0.8312]
[1736888947353,0.8233,3234.9,3234.0,3.09206]
[1736888947508,0.8233,3234.9,3233.9,0.62436896]
[1736888947723,0.8233,3234.9,3234.2,3.09193]
[1736888947952,0.8233,3234.9,3233.9,0.62436896]
[1736888947953,0.8233,3234.9,3234.3,3.09184]
[1736888948895,0.8233,3235.4,3234.5,3.09165]
[1736888949094,0.8233,3235.4,3234.4,0.8312]
[1736888949329,3.91414,3235.4,3234.4,3.92288]
[1736888949515,0.8233,3235.4,3234.5,3.09163]
[1736888949726,0.8233,3235.4,3234.4,0.8312]
[1736888950137,0.8233,3235.4,3234.6,3.09155]
[1736888951955,0.8233,3235.4,3234.4,3.92294]
[1736888952158,3.91414,3235.4,3234.4,3.92294]
[1736888952949,3.91414,3235.4,3234.5,3.09165]
[1736888954418,3.91414,3235.4,3234.4,0.8312]
[1736888954952,3.91414,3235.4,3234.5,3.09166]
[1736888955712,0.8233,3235.4,3234.6,3.09152]
[1736888956010,0.8233,3235.4,3234.6,3.09147]
[1736888956950,0.8233,3235.4,3234.4,3.92287]
[1736888957120,0.8233,3235.4,3234.5,3.09166]
[1736888960407,0.7593,3235.2,3234.4,3.09174]
[1736888967028,3.0909,3235.3,3234.0,3.89091]
[1736888967029,0.7593,3234.8,3234.0,3.09209]
[1736888967225,0.7593,3234.6,3233.9,1.924843]
[1736888967426,0.7593,3234.5,3233.9,1.924843]
[1736888967930,0.7593,3234.5,3233.7,3.09236]
[1736888968537,0.7593,3234.5,3233.6,0.62281893]
[1736888968774,0.7593,3234.5,3233.8,3.09233]
[1736888968968,0.7593,3234.5,3233.6,0.62281893]
[1736888969174,0.7593,3234.8,3233.7,0.7988]
[1736888969374,0.7593,3234.8,3234.4,3.09167]
[1736888970743,0.7593,3234.8,3234.3,0.7988]
[1736888971080,0.7593,3235.9,3234.8,3.0913]
[1736888971383,0.7593,3235.6,3234.8,3.0913]
[1736888971862,3.84994,3235.6,3234.6,3.09152]
[1736888972203,0.7593,3235.5,3234.7,3.09145]
[1736888972375,0.7593,3235.5,3234.4,3.0]
[1736888972727,0.7593,3235.5,3234.7,3.0914]
[1736888972976,1.144294,3235.5,3234.7,3.0914]
[1736888973181,0.7593,3235.1,3234.3,3.0918]
[1736888973546,0.7593,3235.1,3234.1,1.924843]
[1736888973547,0.7593,3235.0,3234.1,1.924843]
[1736888973751,3.09128,3234.9,3234.1,1.924843]
[1736888974003,0.7593,3234.8,3234.2,0.7988]
[1736888974212,0.7593,3234.8,3234.4,3.09167]
[1736888974369,0.75557841,3234.8,3234.5,3.0916]
[1736888976427,0.75557841,3234.8,3234.3,3.09178]
[1736888978318,0.75557841,3234.8,3234.3,2.86873277]
[1736888978907,0.75557841,3234.8,3234.4,3.09175]
[1736888981516,0.75557841,3234.8,3234.5,3.09166]
[1736888985503,0.75557841,3234.8,3234.5,5.016503]
[1736888987326,0.75557841,3234.8,3234.5,1.924843]
[1736888987524,0.55,3235.4,3234.5,1.924843]
[1736888987525,0.8254,3235.4,3234.5,1.924843]
[1736888987826,0.8254,3235.4,3235.2,3.09092]
[1736888988125,0.8254,3236.0,3235.2,3.09092]
[1736888988471,0.391555,3235.9,3235.2,3.09092]
[1736888988846,0.391555,3235.9,3235.2,5.015763]
[1736888990033,0.391555,3235.9,3235.2,3.09092]
[1736888990437,0.391555,3235.9,3235.1,1.924843]
[1736888990606,0.8254,3235.8,3235.1,1.924843]
[1736888990935,0.8254,3235.7,3235.1,1.924843]
[1736888991401,0.8254,3235.6,3235.0,1.924843]
[1736888991597,0.8254,3235.4,3235.0,1.924843]
[1736888991799,0.8254,3235.4,3234.9,1.924843]
[1736888992831,0.8254,3235.4,3235.0,1.924843]
[1736888994800,0.8254,3235.4,3235.1,1.924843]
[1736888996739,0.8254,3235.4,3234.9,2.56645733]
[1736888996740,0.8254,3235.4,3235.0,1.924843]
[1736888999152,0.03863892,3235.3,3235.0,1.924843]
[1736888999354,0.8254,3235.2,3235.0,1.924843]
[1736888999652,0.8254,3235.2,3234.7,1.924843]
[1736888999855,0.8254,3235.0,3234.7,1.924843]
[1736889000304,0.8254,3235.0,3234.6,1.924843]
[1736889000918,0.8254,3235.0,3234.5,1.924843]
[1736889001643,0.8254,3235.0,3234.5,0.8303]
[1736889001942,3.91604,3235.6,3234.8,3.09131]
[1736889002151,0.8254,3235.4,3234.8,1.924843]
[1736889003533,0.7791,3235.2,3234.8,1.924843]
[1736889003744,0.7791,3235.0,3234.7,1.924843]
[1736889004040,0.7791,3234.9,3234.7,1.924843]
[1736889004243,0.7791,3234.7,3234.4,1.924843]
[1736889004448,0.81774671,3234.7,3234.4,1.924843]
[1736889004845,3.09154,3234.7,3234.4,1.924843]
[1736889005033,0.7791,3234.6,3234.4,1.924843]
[1736889005237,0.03864861,3235.0,3234.2,1.924843]
[1736889005238,3.0918,3234.4,3234.2,1.924843]
[1736889005547,1.14328,3234.3,3234.2,1.924843]
[1736889005731,1.14328,3234.3,3233.9,1.924843]
[1736889006475,1.14328,3234.3,3233.8,1.924843]
[1736889006747,0.7791,3234.2,3233.8,1.924843]
[1736889007306,0.7791,3234.2,3233.7,1.924843]
[1736889008010,1.166198,3234.2,3233.7,1.924843]
[1736889008348,0.7791,3234.1,3233.7,1.924843]
[1736889008750,0.55,3234.0,3233.5,1.924843]
[1736889008950,0.7791,3233.9,3233.5,1.924843]
[1736889009626,0.7791,3233.9,3233.4,1.924843]
[1736889010177,3.1309982,3233.8,3233.4,1.924843]
[1736889010313,3.1309982,3233.8,3233.3,1.924843]
[1736889010314,3.87168,3233.6,3233.3,1.924843]
[1736889010647,4.42181,3233.4,3233.3,1.812743]
[1736889011150,0.55,3233.0,3232.7,2.56645733]
[1736889011311,0.7791,3232.8,3232.7,2.56645733]
[1736889011651,1.221329,3232.8,3232.7,2.56645733]
[1736889011877,0.7791,3232.8,3232.0,5.66050733]
[1736889012214,0.7791,3232.8,3232.0,3.09405]
[1736889012423,0.0386717,3232.7,3231.8,5.66066733]
[1736889012643,0.55,3232.7,3231.9,3.09415]
[1736889013927,0.55,3232.7,3232.0,3.09402]
[1736889014527,0.55,3232.7,3232.0,2.77066913]
[1736889015939,0.55,3232.7,3231.7,1.4460226]
[1736889016126,0.99223,3232.7,3231.9,3.09415]
[1736889017660,0.7791,3232.8,3231.8,3.09425]
[1736889017822,0.7791,3232.8,3232.1,3.0939]
[1736889018418,0.7791,3232.8,3231.9,3.09411]
[1736889018825,0.7791,3232.8,3232.0,3.09404]
[1736889020058,0.7791,3232.8,3231.7,1.4460226]
[1736889020268,0.7791,3232.8,3232.3,3.09369]
[1736889020460,0.7791,3232.8,3232.2,0.783]
[1736889020665,0.7791,3232.8,3232.2,3.87678]
[1736889020967,0.7791,3232.8,3232.2,3.09378]
[1736889021259,0.03867035,3232.7,3231.9,3.09409]
[1736889021468,0.39110704,3232.7,3232.0,3.09404]
[1736889021629,0.7791,3232.8,3232.0,3.09404]
[1736889022523,0.55,3232.6,3231.8,3.09424]
[1736889022866,0.7964,3232.5,3231.8,3.09424]
[1736889023024,0.7964,3233.4,3231.8,0.7855]
[1736889023230,0.7964,3233.4,3232.7,3.0933]
[1736889023454,0.7964,3233.4,3232.8,3.09327]
[1736889024324,0.7964,3233.4,3232.6,3.87896]
[1736889024668,0.7964,3233.4,3232.7,3.09337]
[1736889027169,0.7964,3233.4,3232.6,0.7855]
[1736889027170,0.7964,3233.4,3232.6,3.87895]
[1736889027353,1.185304,3233.4,3232.6,3.87895]
[1736889028859,1.185304,3233.4,3232.6,3.09345]
[1736889029667,1.185304,3233.4,3232.3,3.0]
[1736889029668,0.55,3233.1,3232.3,3.0]
[1736889029962,3.09291,3233.2,3232.3,3.0]
[1736889030165,1.3464,3233.1,3232.3,3.09376]
[1736889030368,0.443931,3233.0,3232.3,3.09376]
[1736889030671,0.7964,3232.5,3231.4,2.71452227]
[1736889030858,0.7964,3232.2,3231.5,3.09446]
[1736889031029,0.03867881,3232.1,3231.4,1.92902227]
[1736889031364,0.7964,3232.2,3231.4,1.92902227]
[1736889031574,0.7964,3232.2,3231.5,3.09452]
[1736889032071,0.05471139,3232.1,3231.5,3.09452]
[1736889032538,0.7964,3232.2,3231.5,3.09452]
[1736889032748,0.0530575,3232.0,3231.5,3.09452]
[1736889032960,0.7964,3232.2,3231.5,3.09452]
[1736889032961,0.05280174,3231.9,3231.5,3.09452]
[1736889033280,0.7964,3232.2,3231.3,3.09468]
[1736889033433,0.05278728,3231.8,3231.3,3.09468]
[1736889033770,0.7964,3231.7,3231.4,3.09463]
[1736889033955,0.84918261,3231.7,3231.4,3.09463]
[1736889034368,0.84918261,3231.7,3231.5,3.09451]
[1736889034868,0.7964,3231.7,3231.5,3.09451]
[1736889035074,0.7964,3231.7,3231.3,3.09464]
[1736889035449,0.05275835,3231.6,3231.4,3.09462]
[1736889035643,0.7964,3231.7,3231.4,3.09462]
[1736889035847,0.05275835,3231.6,3231.4,3.09462]
[1736889036073,0.7964,3231.7,3231.4,3.09462]
[1736889036259,0.7964,3231.7,3231.2,3.0]
[1736889036457,0.7964,3231.7,3231.5,3.09452]
[1736889036659,0.7964,3231.7,3231.5,3.09448]
[1736889036854,0.7964,3232.2,3231.5,3.09448]
[1736889037055,0.05283066,3232.1,3231.5,3.09448]
[1736889039454,0.7964,3232.0,3231.0,0.62724224]
[1736889039828,3.09332,3232.8,3230.8,2.71452227]
[1736889039829,0.7964,3231.6,3230.8,5.02418227]
[1736889039955,0.7964,3231.4,3230.8,1.92902227]
[1736889040150,0.05237924,3231.3,3230.8,1.92902227]
[1736889040681,0.05237924,3231.3,3230.4,0.61168637]
[1736889040682,0.05237924,3231.3,3230.4,3.70723637]
[1736889040890,0.05237924,3231.3,3230.8,3.09519]
[1736889041692,0.05237924,3231.3,3230.8,0.7855]
[1736889041989,0.05237924,3231.3,3231.0,3.09494]
[1736889042194,0.05237924,3231.3,3230.6,3.0953]
[1736889042195,0.7964,3231.2,3230.6,3.09537]
[1736889042389,0.05153889,3231.1,3230.4,0.7855]
[1736889042560,0.7964,3231.2,3230.4,3.88106]
[1736889042759,0.05153556,3231.1,3230.4,3.88106]
[1736889043062,0.7964,3231.0,3230.2,3.09572]
[1736889043684,0.7964,3231.0,3230.1,3.7855]
[1736889043882,0.7964,3231.0,3230.5,3.09541]
[1736889044414,0.05150126,3230.9,3230.5,3.09541]
[1736889044769,0.7964,3231.0,3230.5,3.09541]
[1736889046974,0.7964,3231.0,3230.3,3.09564]
[1736889047342,0.04793971,3230.9,3230.3,3.09564]
[1736889047693,0.7964,3231.0,3230.3,3.09564]
[1736889048004,0.04793971,3230.9,3230.3,3.09564]
[1736889049326,0.04793971,3230.9,3230.6,3.09532]
[1736889050520,0.04793971,3230.9,3230.4,3.09555]
[1736889051025,0.04793971,3230.9,3230.3,1.92902227]
[1736889051231,3.89142,3231.0,3230.3,1.92902227]
[1736889051400,0.43498654,3230.9,3230.3,1.92902227]
[1736889051598,0.43498654,3230.9,3230.2,3.09569]
[1736889051902,0.389142,3230.9,3230.2,3.09569]
[1736889053387,0.04586653,3230.8,3230.2,3.09569]
[1736889054723,0.55,3230.9,3230.2,3.09569]
[1736889055083,0.04387597,3230.8,3230.2,3.09569]
[1736889057826,0.04387597,3230.8,3230.3,3.09567]
[1736889060338,0.04387597,3230.8,3230.4,3.89253]
[1736889060650,0.7702,3231.2,3230.1,0.797]
[1736889060805,0.7702,3231.2,3230.4,3.09555]
[1736889061006,0.7596,3231.0,3230.4,3.09555]
[1736889061318,0.7596,3231.0,3230.5,3.09548]
[1736889061733,0.03673956,3230.9,3230.5,3.09548]
[1736889062038,0.7596,3231.0,3230.5,3.09548]
[1736889062238,0.03673956,3230.9,3230.5,3.09548]
[1736889062443,0.7596,3231.0,3230.5,3.09548]
[1736889062742,0.03673956,3230.9,3230.1,6.43908726]
[1736889062944,0.03673956,3230.9,3230.3,3.09562]
[1736889063141,0.7596,3231.0,3230.3,3.09562]
[1736889063446,0.03673956,3230.9,3230.3,3.09562]
[1736889063638,0.7596,3231.0,3230.3,3.09562]
[1736889063798,0.7596,3231.0,3230.1,4.51006499]
[1736889063799,0.03673956,3230.9,3230.4,3.09554]
[1736889064300,0.03673956,3230.9,3230.5,3.09545]
[1736889064501,0.03673956,3230.9,3230.1,1.41422499]
[1736889064742,0.03673956,3230.9,3230.8,3.0952]
[1736889064904,0.7596,3231.3,3230.9,3.09503]
[1736889065104,0.7596,3231.3,3230.7,0.7885]
[1736889065299,0.03678296,3231.2,3230.8,3.09512]
[1736889065611,0.03671599,3231.1,3230.6,3.09534]
[1736889065830,0.7596,3231.3,3230.6,3.09534]
[1736889066155,0.03673046,3231.2,3230.6,3.09534]
[1736889066441,0.7596,3231.3,3230.6,3.09534]
[1736889066640,0.42214477,3231.2,3230.6,3.09534]
[1736889066805,0.7596,3231.1,3230.4,3.09555]
[1736889068118,0.03673909,3231.0,3230.4,3.09555]
[1736889068308,0.7596,3230.9,3230.4,3.09555]
[1736889068704,0.03671015,3230.8,3230.4,3.09555]
[1736889069510,0.03671015,3230.8,3230.5,3.09548]
[1736889070117,0.03671015,3230.8,3230.3,3.09563]
[1736889070547,0.7596,3230.9,3230.3,3.09563]
[1736889070842,0.03611854,3230.8,3230.3,3.09563]
[1736889073662,0.03611854,3230.8,3230.4,3.09558]
[1736889073866,0.7596,3230.9,3230.4,3.09558]
[1736889075634,0.03538514,3230.8,3230.4,3.09558]
[1736889077047,0.03538514,3230.8,3230.4,5.02460227]
[1736889077568,0.03538514,3230.8,3230.4,1.92902227]
[1736889078155,0.7596,3230.9,3230.4,1.92902227]
[1736889078357,0.03411068,3230.7,3230.4,1.92902227]
[1736889078566,0.03412515,3230.8,3230.3,1.92902227]
[1736889078768,0.7596,3230.9,3230.3,1.92902227]
[1736889079074,3.19487,3231.2,3230.3,1.92902227]
[1736889079075,0.7614,3230.6,3230.3,1.92902227]
[1736889079444,0.7614,3230.6,3230.2,5.02478227]
[1736889080054,0.7614,3230.6,3230.3,1.92902227]
[1736889082583,7.40699,3230.4,3230.3,1.92902227]
[1736889082783,5.36551777,3230.4,3229.9,1.92902227]
[1736889082952,3.64572,3230.3,3229.9,1.92902227]
[1736889083293,1.3114,3230.0,3229.9,1.92902227]
[1736889083496,0.7614,3230.0,3229.9,1.92902227]
[1736889083695,0.0337908,3230.0,3229.9,1.92902227]
[1736889083987,0.7614,3230.3,3229.7,0.7736]
[1736889084288,0.7614,3230.3,3229.9,1.92902227]
[1736889084773,0.7614,3230.3,3229.8,5.02517227]
[1736889085078,0.7614,3230.3,3229.8,1.92902227]
[1736889085279,0.03347639,3230.2,3229.8,1.92902227]
[1736889085573,0.7614,3230.3,3229.8,1.92902227]
[1736889085778,1.147089,3230.3,3229.8,1.92902227]
[1736889085979,0.03232303,3230.2,3229.8,1.92902227]
[1736889086344,1.147089,3230.3,3229.8,1.92902227]
[1736889086656,0.03232303,3230.2,3229.8,1.92902227]
[1736889086856,0.7614,3230.3,3229.8,1.92902227]
[1736889087056,0.0323152,3230.1,3229.8,1.92902227]
[1736889087371,0.7614,3230.3,3229.8,1.92902227]
[1736889087575,3.0,3247.3,3229.8,1.92902227]
[1736889087576,0.7614,3231.1,3230.3,3.09567]
[1736889087886,0.7614,3231.1,3230.6,3.09539]
[1736889087887,1.157023,3231.1,3230.6,3.09539]
[1736889088085,0.03223795,3231.0,3230.6,3.09539]
[1736889088384,0.03223795,3231.0,3230.4,5.02455227]
[1736889088542,0.03223795,3231.0,3230.5,1.92902227]
[1736889088739,0.7614,3231.1,3230.5,1.92902227]
[1736889089141,0.7614,3231.1,3230.6,1.92902227]
[1736889089578,0.03116841,3231.0,3230.6,1.92902227]
[1736889089886,0.03116841,3231.0,3230.5,1.92902227]
[1736889090283,0.03116841,3231.0,3230.4,5.02455227]
[1736889091483,0.03116841,3231.0,3230.5,1.92902227]
[1736889091685,0.7614,3231.1,3230.5,1.92902227]
[1736889091686,0.7614,3231.1,3230.5,5.02446227]
[1736889092965,0.7614,3231.1,3230.5,1.92902227]
[1736889093284,0.7614,3230.9,3230.5,1.92902227]
[1736889093458,0.55,3230.6,3230.4,1.92902227]
[1736889093664,0.55,3230.8,3230.4,1.92902227]
[1736889093863,0.7614,3230.5,3230.4,1.92902227]
[1736889094062,0.7614,3230.5,3230.1,1.92902227]
[1736889094775,0.7614,3230.5,3230.0,1.92902227]
[1736889095151,0.03111216,3230.4,3230.0,1.92902227]
[1736889096895,0.03111216,3230.4,3229.9,1.92902227]
[1736889097561,0.7614,3230.3,3229.9,1.92902227]
[1736889098093,0.03110315,3230.2,3229.8,2.70262227]
[1736889098393,0.7614,3231.1,3230.3,3.09565]
[1736889098765,0.03129557,3231.0,3230.3,3.09565]
[1736889098966,0.58129557,3231.0,3230.3,5.02467227]
[1736889099216,0.58129557,3231.0,3230.4,3.09558]
[1736889100133,0.03129557,3231.0,3230.4,1.92902227]
[1736889100292,0.03129557,3231.0,3230.5,0.7736]
[1736889100493,0.1,3231.2,3230.5,0.7736]
[1736889100704,0.1,3231.2,3230.6,1.92902227]
[1736889101405,0.1,3231.2,3230.7,1.92902227]
[1736889101768,0.1,3231.2,3230.7,5.02425227]
[1736889101970,0.7614,3231.1,3230.7,1.92902227]
[1736889102290,0.03156343,3231.0,3230.7,1.92902227]
[1736889102491,0.7614,3231.1,3230.6,1.92902227]
[1736889102667,0.7614,3231.1,3230.7,3.09527]
[1736889103071,0.1,3231.2,3230.7,0.7619]
[1736889103285,0.1,3231.2,3230.7,5.78618227]
[1736889103519,0.03152947,3231.1,3230.7,3.85716]
[1736889104623,0.03152947,3231.1,3230.7,5.79585073]
[1736889105050,0.1,3231.2,3230.9,3.09509]
[1736889105177,0.1,3231.2,3231.1,3.09492]
[1736889106112,0.1,3231.2,3230.9,5.03375073]
[1736889107124,0.1,3231.2,3230.9,3.09506]
[1736889107829,0.03196462,3231.1,3231.0,3.095]
[1736889107993,0.1,3231.2,3231.0,3.095]
[1736889108329,0.1,3231.2,3231.1,3.85872]
[1736889108683,0.8089,3232.3,3231.3,0.7638]
[1736889108997,0.8089,3232.3,3231.7,3.09429]
[1736889109882,0.8089,3232.3,3231.8,3.09422]
[1736889119842,0.8089,3232.3,3231.6,3.09442]
[1736889120203,0.03245351,3232.2,3231.6,3.09442]
[1736889120443,0.8089,3232.3,3231.7,3.09432]
[1736889120643,0.03243905,3232.1,3231.4,3.71647373]
[1736889120827,0.8089,3232.3,3231.7,3.09425]
[1736889121136,0.03242459,3232.0,3231.7,3.09425]
[1736889121319,0.8089,3232.3,3231.7,3.09425]
[1736889121523,0.03241013,3231.9,3231.7,3.09425]
[1736889121726,0.8089,3232.3,3231.7,3.09425]
[1736889122253,0.03245351,3232.2,3231.7,3.09425]
[1736889122407,3.0939,3232.2,3231.3,6.85845]
[1736889122610,0.7977,3232.0,3231.3,3.0]
[1736889122813,0.0327355,3231.9,3231.3,3.0]
[1736889124519,0.0327355,3231.9,3231.1,1.44368271]
[1736889124715,0.0327355,3231.9,3231.3,3.09463]
[1736889126048,0.0327355,3231.9,3231.4,3.09456]
[1736889127036,0.7977,3232.0,3231.4,3.09456]
[1736889127241,0.0316238,3231.8,3231.4,3.09456]
[1736889127398,0.7977,3232.0,3231.4,3.09456]
[1736889127599,0.03163826,3231.9,3231.4,3.09456]
[1736889129246,0.7977,3231.8,3231.2,3.09478]
[1736889129449,0.82968593,3231.8,3231.2,3.09478]
[1736889130417,0.82968593,3231.8,3231.6,3.09441]
[1736889130666,0.03198593,3231.8,3231.2,0.8109]
[1736889130871,0.7977,3232.1,3231.7,3.09425]
[1736889131052,0.7977,3232.1,3231.1,0.63278271]
[1736889131053,0.03195048,3231.7,3231.1,0.63278271]
[1736889131222,0.7977,3231.6,3231.2,3.09474]
[1736889131420,0.03190581,3231.5,3231.2,3.09474]
[1736889132125,0.7977,3231.6,3231.0,3.09496]
[1736889132364,0.7977,3231.6,3231.1,3.0949]
[1736889132970,0.03190057,3231.5,3231.1,3.0949]
[1736889136488,0.03190057,3231.5,3230.8,3.62607714]
[1736889136489,0.03190057,3231.5,3231.2,3.09481]
[1736889137037,0.03190057,3231.5,3230.9,3.09509]
[1736889137241,0.7977,3231.6,3231.3,3.09472]
[1736889137438,0.03160184,3231.5,3231.3,3.09472]
[1736889139754,0.03160184,3231.5,3230.8,2.5624977]
[1736889139950,0.03160184,3231.5,3231.4,3.09463]
[1736889140278,0.8043,3232.5,3231.3,0.8056]
[1736889140454,0.8043,3232.5,3231.7,3.09427]
[1736889140651,0.80057507,3232.5,3231.7,3.09427]
[1736889141453,3.48298551,3232.5,3231.5,3.09448]
[1736889141655,0.5886747,3232.4,3231.3,5.03110056]
[1736889141861,3.09387,3232.2,3231.3,5.03110056]
[1736889142353,0.55,3232.1,3231.4,3.09462]
[1736889142569,3.0,3233.0,3231.4,3.09462]
[1736889142570,3.09315,3233.0,3232.1,3.09394]
[1736889142771,0.309315,3232.9,3232.2,3.09386]
[1736889142970,3.09298,3233.2,3232.2,3.09386]
[1736889143169,3.0,3233.1,3231.6,3.09444]
[1736889143378,3.28266,3233.5,3232.4,3.0936]
[1736889143545,0.328266,3233.4,3232.3,3.09372]
[1736889143750,0.19,3233.5,3231.7,0.8056]
[1736889143751,0.55,3232.8,3231.7,0.8056]
[1736889143955,0.55,3232.6,3231.9,3.09413]
[1736889144150,0.8043,3232.5,3232.0,1.93642056]
[1736889144657,0.8043,3232.5,3231.9,3.09413]
[1736889145685,0.8043,3232.5,3232.0,3.09403]
[1736889145894,0.8043,3232.5,3232.1,3.09387]
[1736889146352,0.8043,3232.5,3232.2,3.09378]
[1736889146547,0.8043,3232.5,3232.3,3.09369]
[1736889146864,0.8043,3233.3,3232.1,6.18792]
[1736889147192,0.8043,3233.3,3233.2,3.09291]
[1736889147394,0.8043,3233.8,3233.2,3.09291]
[1736889147545,0.8043,3233.8,3232.8,3.89884]
[1736889147546,0.8043,3233.8,3233.0,3.09301]
[1736889147746,0.02742351,3233.7,3233.0,3.09301]
[1736889147948,0.57742351,3233.7,3233.0,3.09301]
[1736889150693,1.06353216,3233.7,3233.1,3.09297]
[1736889150866,0.02742351,3233.7,3233.2,3.09282]
[1736889152688,0.02742351,3233.7,3232.8,3.89883]
[1736889152854,0.57742351,3233.7,3233.0,3.09307]
[1736889153057,0.55,3233.7,3233.0,3.09307]
[1736889153295,0.02736845,3233.6,3233.0,3.09307]
[1736889153789,0.02736845,3233.6,3232.8,0.8056]
[1736889153953,0.02736845,3233.6,3232.9,3.09316]
[1736889154770,0.8043,3233.5,3232.9,3.09316]
[1736889155165,0.02737051,3233.4,3232.9,3.09316]
[1736889156104,0.8043,3233.5,3232.9,3.09316]
[1736889156591,0.02737051,3233.4,3232.9,3.09316]
[1736889156795,0.02737051,3233.4,3232.7,3.09333]
[1736889156796,0.55,3233.3,3232.7,3.09333]
[1736889157295,0.02779817,3233.2,3232.7,3.09333]
[1736889157495,0.55,3233.4,3232.7,3.09333]
[1736889157792,0.02778372,3233.1,3232.7,3.09333]
[1736889158001,0.994686,3233.4,3232.7,3.09333]
[1736889158184,0.02776927,3233.0,3232.7,3.09333]
[1736889158392,0.994686,3233.4,3232.7,3.09333]
[1736889158586,0.02775482,3232.9,3232.7,3.09333]
[1736889158765,0.994686,3233.4,3232.7,3.09333]
[1736889159406,0.02778607,3233.3,3232.7,3.09333]
[1736889160709,0.21046328,3233.3,3232.7,3.09333]
[1736889160915,0.8043,3233.2,3232.7,3.09333]
[1736889161080,0.83206722,3233.2,3232.7,3.09333]
[1736889167526,0.83206722,3233.2,3232.5,3.0935]
[1736889167678,0.8094,3232.8,3232.1,5.03029056]
[1736889167879,0.8094,3232.6,3232.1,1.93642056]
[1736889168128,0.8094,3232.5,3232.1,1.93642056]
[1736889168336,0.55,3232.4,3231.8,1.93642056]
[1736889168484,0.8094,3232.3,3231.8,1.93642056]
[1736889168833,0.83730142,3232.3,3231.8,1.93642056]
[1736889169126,0.83730142,3232.3,3231.6,3.09436]
[1736889170184,0.83730142,3232.3,3231.7,3.09434]
[1736889170820,0.83730142,3232.3,3231.8,3.09423]
[1736889171134,0.0278511,3232.2,3231.4,0.799]
[1736889171999,0.8094,3232.3,3231.4,0.799]
[1736889172235,0.55,3232.2,3231.4,3.09458]
[1736889172398,0.55,3232.2,3231.5,3.0945]
[1736889172602,0.02778342,3232.1,3231.5,3.0945]
[1736889173243,0.02778342,3232.1,3231.3,3.0]
[1736889173443,0.02778342,3232.1,3231.6,3.09438]
[1736889176713,0.55,3232.2,3231.6,3.09438]
[1736889177656,0.55,3232.2,3231.4,3.09459]
[1736889177842,0.0386771,3232.1,3231.4,3.09459]
[1736889178026,0.06604366,3232.1,3231.4,3.09459]
[1736889178526,0.06604366,3232.1,3231.3,3.0]
[1736889178712,0.0386771,3232.1,3231.5,3.09451]
[1736889178912,0.02732549,3232.0,3231.5,3.09451]
[1736889179144,0.02732549,3232.0,3231.6,3.09443]
[1736889179454,0.55,3232.2,3231.6,3.09443]
[1736889179612,0.02731103,3231.9,3231.6,3.09443]
[1736889179813,0.55,3232.2,3231.6,3.09443]
[1736889180041,0.02729656,3231.8,3231.6,3.09443]
[1736889180263,0.55,3232.2,3231.6,3.09443]
[1736889180443,0.0272821,3231.7,3231.6,3.09443]
[1736889180650,0.55,3232.2,3231.6,3.09443]
[1736889181060,0.02734493,3232.1,3231.6,3.09443]
[1736889181765,0.55,3232.2,3231.6,3.09443]
[1736889181946,0.02736561,3232.0,3231.6,3.09443]